bitfinex/quotes_ETHUSD_20251125
["timestamp","ask_amount","ask_price","bid_price","bid_amount"]
[1764080466898,0.76850225,2913.2,2912.6,3.43332932]
[1764080467190,0.76850225,2913.2,2912.4,3.43455172]
[1764080467191,0.76850225,2913.2,2912.5,3.43343811]
[1764080467415,3.43276921,2913.1,2912.4,6.868146]
[1764080467615,4.20120859,2913.2,2912.5,0.4544]
[1764080467804,4.37724211,2913.3,2912.5,0.4544]
[1764080467984,7.80989011,2913.3,2912.5,0.4544]
[1764080468383,0.31733751,2913.2,2912.5,0.4544]
[1764080469397,0.31733751,2913.2,2912.6,3.43335851]
[1764080469398,3.43276921,2913.1,2912.6,3.43335851]
[1764080469594,3.43276921,2913.1,2912.5,3.88782481]
[1764080469804,6.86553842,2913.1,2912.4,0.001]
[1764080469984,3.43476921,2913.1,2912.4,3.88899241]
[1764080470185,0.31776979,2913.0,2912.4,3.88899241]
[1764080470431,0.219,2912.9,2912.4,3.88899241]
[1764080470792,0.219,2912.9,2912.5,0.4544]
[1764080471399,0.1165,2912.6,2912.4,0.001]
[1764080471630,1.00229408,2912.5,2912.4,0.001]
[1764080472214,1.73524494,2912.5,2912.4,0.001]
[1764080472810,1.00149408,2912.5,2912.4,0.001]
[1764080473201,1.73528084,2912.5,2912.4,0.001]
[1764080473517,4.70375723,2912.5,2912.4,0.001]
[1764080473807,4.70455723,2912.5,2912.4,0.001]
[1764080474529,5.16615723,2912.5,2912.4,0.001]
[1764080475141,5.29585723,2912.5,2912.4,0.001]
[1764080475306,1.86238084,2912.5,2912.4,0.001]
[1764080475498,5.29585723,2912.5,2912.4,0.001]
[1764080476509,5.57166123,2912.5,2912.4,0.001]
[1764080476712,5.70136123,2912.5,2912.4,0.001]
[1764080478414,11.35456534,2912.5,2912.4,0.001]
[1764080478619,7.64720923,2912.5,2912.4,0.001]
[1764080478851,6.42695534,2912.5,2912.4,0.001]
[1764080479015,7.3444347,2912.5,2912.4,0.001]
[1764080479333,6.42695534,2912.5,2912.4,0.001]
[1764080480245,7.34454643,2912.5,2912.4,0.001]
[1764080480553,6.42695534,2912.5,2912.4,0.001]
[1764080481037,6.29725534,2912.5,2912.4,0.001]
[1764080481439,6.07825534,2912.5,2912.4,0.001]
[1764080481628,6.29725534,2912.5,2912.4,0.001]
[1764080482229,6.46987379,2912.5,2912.4,0.001]
[1764080483036,6.29725534,2912.5,2912.4,0.001]
[1764080483237,7.34532094,2912.5,2912.4,0.001]
[1764080483551,6.99662094,2912.5,2912.4,0.001]
[1764080483753,7.21562094,2912.5,2912.4,0.001]
[1764080484137,7.21562094,2912.5,2912.4,0.4751]
[1764080484138,3.32054455,2912.5,2912.4,0.4751]
[1764080484338,5.83565534,2912.5,2912.4,0.4751]
[1764080484756,5.11006123,2912.5,2912.4,0.4751]
[1764080485045,1.67658484,2912.5,2912.4,0.4751]
[1764080485248,5.11006123,2912.5,2912.4,0.4751]
[1764080487871,1.05208084,2912.5,2912.4,0.4751]
[1764080488024,3.43231263,2913.5,2912.4,7.82598856]
[1764080488025,0.9183656,2913.2,2912.4,7.82598856]
[1764080488224,0.31897034,2913.0,2912.5,0.4837]
[1764080488450,3.43447526,2913.4,2913.0,0.4741]
[1764080488618,0.221,2913.1,2913.0,0.4741]
[1764080488950,0.221,2913.1,2913.0,0.9578]
[1764080489151,0.54004375,2913.1,2913.0,0.9578]
[1764080493279,0.32104375,2913.1,2913.0,0.9578]
[1764080493481,0.221,2913.1,2913.0,0.9578]
[1764080493650,0.54004375,2913.1,2913.0,0.9578]
[1764080495953,0.002,2913.4,2913.0,11.25646115]
[1764080496260,0.0012,2913.7,2913.6,0.4741]
[1764080496581,0.2202,2913.7,2913.6,0.4741]
[1764080498180,3.65226232,2913.7,2913.4,0.4837]
[1764080498689,3.65226232,2913.7,2913.2,3.6193293]
[1764080498873,0.04290225,2913.6,2913.2,0.1867]
[1764080499074,7.08432464,2913.7,2913.2,0.1867]
[1764080499075,4.10986232,2913.7,2913.2,0.1867]
[1764080499669,3.65226232,2913.7,2913.3,0.4837]
[1764080500471,3.65226232,2913.7,2913.2,0.1867]
[1764080500683,3.65226232,2913.7,2913.2,0.6704]
[1764080500888,0.0012,2913.7,2913.6,0.4741]
[1764080501479,0.2202,2913.7,2913.6,0.9578]
[1764080501786,0.2202,2913.7,2913.6,0.4741]
[1764080502688,0.0012,2913.7,2913.2,3.61932825]
[1764080502870,0.219,2913.6,2913.3,0.4837]
[1764080503203,0.219,2913.6,2913.2,3.61932825]
[1764080503204,0.219,2913.6,2913.2,0.1867]
[1764080503507,0.0012,2913.7,2913.5,0.4741]
[1764080503661,0.0012,2913.7,2913.6,0.4741]
[1764080503860,0.2202,2913.7,2913.6,0.4741]
[1764080504170,0.2202,2913.7,2913.6,0.9578]
[1764080504373,0.0012,2913.7,2913.6,0.9578]
[1764080504574,0.0012,2913.7,2913.6,4.38998012]
[1764080504892,1.1171656,2915.2,2913.6,4.38998012]
[1764080504893,0.002,2914.0,2913.6,11.97993447]
[1764080505091,0.002,2914.0,2913.7,1.20929411]
[1764080505262,0.002,2915.2,2913.9,5.50806378]
[1764080505456,0.002,2915.2,2914.0,0.72559411]
[1764080505674,0.219,2915.1,2914.0,1.20929411]
[1764080505861,0.219,2915.1,2914.1,0.6704]
[1764080506286,0.219,2915.1,2914.2,0.4837]
[1764080506790,0.219,2915.1,2914.3,6.86271144]
[1764080506996,0.219,2915.1,2914.3,3.43135572]
[1764080506997,3.64944324,2915.1,2914.3,3.43135572]
[1764080507294,3.64944324,2915.1,2914.4,0.4837]
[1764080507669,0.002,2915.2,2915.0,0.4741]
[1764080507889,0.002,2915.2,2915.1,0.4741]
[1764080508084,0.221,2915.2,2915.1,1.1445]
[1764080508774,0.221,2915.2,2914.9,0.1867]
[1764080508976,0.221,2915.2,2914.9,3.61733577]
[1764080509373,3.65134063,2915.2,2914.7,0.4837]
[1764080509606,3.65134063,2915.2,2914.6,3.61763323]
[1764080509790,4.10894063,2915.2,2914.6,0.1867]
[1764080509989,4.15181933,2915.2,2914.6,0.1867]
[1764080510162,4.15181933,2915.2,2914.5,3.43110844]
[1764080511895,0.405504,2915.1,2914.4,3.91489695]
[1764080512193,0.04288164,2915.0,2914.4,3.43119695]
[1764080512617,0.053,2914.9,2914.4,3.43119695]
[1764080512813,0.219,2914.8,2914.4,6.86243494]
[1764080513014,0.405504,2915.1,2914.6,3.43100253]
[1764080513191,0.405504,2915.1,2914.5,3.91548093]
[1764080513192,0.219,2914.7,2914.5,3.91548093]
[1764080513604,0.219,2914.7,2914.6,0.4617]
[1764080514417,0.219,2914.7,2914.6,0.9461]
[1764080515205,0.219,2914.7,2914.6,0.4617]
[1764080516914,0.219,2914.7,2914.6,3.89270253]
[1764080517120,0.219,2914.7,2914.6,4.37710253]
[1764080517286,0.219,2914.7,2914.6,0.4617]
[1764080517882,0.219,2914.7,2914.3,3.9157554]
[1764080517883,0.4703,2914.7,2914.3,3.9157554]
[1764080518088,0.218,2914.6,2914.3,3.4313554]
[1764080518284,0.218,2914.6,2914.3,6.86271112]
[1764080518488,0.218,2914.6,2914.5,0.491]
[1764080519494,0.4693,2914.6,2914.1,0.1867]
[1764080519831,0.4693,2914.6,2914.2,0.4704]
[1764080520037,4.15616773,2915.0,2914.5,0.491]
[1764080520194,4.15616773,2915.0,2914.1,7.04982291]
[1764080520195,0.404704,2914.8,2914.1,0.1867]
[1764080520391,0.002,2915.2,2914.2,0.4704]
[1764080520592,0.218,2915.1,2914.9,0.491]
[1764080520904,0.1108,2915.0,2914.1,7.52019097]
[1764080521104,0.218,2915.1,2914.2,0.4704]
[1764080521424,0.002,2915.2,2915.0,0.491]
[1764080521739,0.218,2915.1,2915.0,0.491]
[1764080522599,0.002,2915.2,2915.0,0.9614]
[1764080522787,0.002,2915.2,2914.4,0.74613217]
[1764080522788,0.002,2915.2,2915.1,1.1601]
[1764080522993,0.22,2915.2,2915.1,1.1601]
[1764080523538,0.22,2915.2,2915.1,4.39181405]
[1764080524397,0.002,2915.2,2915.1,4.39181405]
[1764080524633,0.002,2915.2,2914.9,0.1987]
[1764080524634,3.54317029,2915.2,2914.5,0.1987]
[1764080524937,3.54317029,2915.2,2914.7,0.4704]
[1764080524938,0.1556787,2915.2,2914.7,0.4704]
[1764080525243,3.54310753,2915.2,2914.1,0.91229411]
[1764080525443,3.54310753,2915.2,2913.7,0.001]
[1764080525444,0.662004,2914.5,2913.8,0.1987]
[1764080525736,0.0073,2914.2,2913.8,0.1987]
[1764080525945,0.0073,2914.2,2913.8,3.63062234]
[1764080526093,0.0073,2914.2,2913.8,3.6305353]
[1764080526294,0.31933759,2914.3,2914.1,1.1601]
[1764080526549,0.218,2914.2,2914.1,0.6691]
[1764080526694,0.73592566,2915.0,2914.2,0.491]
[1764080526895,0.3195414,2914.9,2914.3,0.4704]
[1764080527198,0.218,2914.8,2914.3,0.4704]
[1764080527395,0.72759411,2915.2,2915.1,0.491]
[1764080527396,0.002,2915.2,2915.1,0.491]
[1764080527595,0.002,2915.2,2915.1,0.9614]
[1764080529134,0.002,2915.2,2914.5,0.72559411]
[1764080529135,0.002,2915.2,2914.6,0.4704]
[1764080529332,0.002,2915.2,2914.7,6.86176964]
[1764080529709,0.002,2915.2,2914.8,0.4704]
[1764080530112,0.002,2915.2,2915.1,0.491]
[1764080530445,0.22,2915.2,2915.1,0.491]
[1764080530948,1.02705955,2915.2,2914.6,3.43100253]
[1764080531109,0.7069,2915.2,2914.5,3.90149282]
[1764080531314,0.32022907,2915.1,2914.5,7.33261308]
[1764080531624,0.32022907,2915.0,2914.5,7.33261308]
[1764080531823,0.22,2915.2,2914.6,0.4704]
[1764080532040,0.32022505,2915.1,2914.9,0.491]
[1764080532246,0.32022505,2915.0,2914.9,0.491]
[1764080532658,0.53822505,2915.0,2914.9,0.491]
[1764080533013,0.53822505,2915.0,2914.9,0.9614]
[1764080533279,0.218,2915.0,2914.9,0.9614]
[1764080533419,0.53873058,2915.0,2914.9,4.39204942]
[1764080535367,1.02563058,2915.0,2914.7,3.43082816]
[1764080535545,0.32073058,2914.9,2914.5,6.86216367]
[1764080535710,0.7049,2915.0,2914.5,3.43104341]
[1764080535918,0.32075721,2914.9,2914.5,3.90144341]
[1764080536233,0.218,2915.0,2914.5,3.90144341]
[1764080536437,0.218,2915.0,2914.1,0.1987]
[1764080536438,0.2612,2914.6,2914.1,0.1987]
[1764080536636,0.218,2914.5,2914.2,0.72559411]
[1764080537462,0.218,2914.5,2914.0,3.43264771]
[1764080537758,0.3205986,2914.4,2914.0,3.43264771]
[1764080538050,0.3205986,2914.3,2914.0,7.3347567]
[1764080538353,0.218,2914.5,2914.0,3.90304771]
[1764080538549,0.32061264,2914.4,2914.0,3.90304771]
[1764080538751,0.32061264,2914.3,2914.1,0.4704]
[1764080539050,0.218,2914.5,2914.1,0.4704]
[1764080539244,0.32063558,2914.4,2914.1,0.4704]
[1764080539426,0.32063558,2914.3,2914.1,0.4704]
[1764080539627,0.218,2914.5,2914.2,3.43147347]
[1764080539831,3.43085046,2914.8,2914.4,0.491]
[1764080540031,1.05918255,2914.7,2914.2,6.86294694]
[1764080540218,0.218,2914.9,2914.3,1.24054632]
[1764080540422,0.218,2914.9,2914.3,1.21999411]
[1764080540735,0.218,2914.9,2914.8,0.4876]
[1764080541051,0.53871138,2914.9,2914.8,0.4876]
[1764080541254,0.218,2914.9,2914.8,0.4876]
[1764080541655,0.218,2914.9,2914.8,3.91836711]
[1764080543025,0.218,2914.9,2914.8,0.4876]
[1764080543236,0.53875111,2914.9,2914.8,0.4876]
[1764080543465,0.53875111,2914.9,2914.8,3.91836711]
[1764080544060,0.53875111,2914.9,2914.8,0.4876]
[1764080544353,0.2172,2914.9,2914.8,0.4876]
[1764080544754,0.2172,2914.9,2914.7,3.43081955]
[1764080545057,0.1501,2914.8,2914.4,3.43123799]
[1764080545259,4.28755691,2914.9,2914.3,3.43131182]
[1764080545459,4.29055691,2914.9,2914.3,3.43131182]
[1764080545663,4.29055691,2914.9,2914.1,6.86318244]
[1764080545865,0.77185033,2914.8,2914.1,3.43159122]
[1764080546182,0.77185033,2914.8,2914.0,3.92706519]
[1764080546183,0.77185033,2914.7,2914.0,3.9270975]
[1764080546367,0.32065033,2914.6,2914.0,3.9270975]
[1764080546663,0.218,2914.5,2914.0,7.35880649]
[1764080547050,0.218,2914.5,2914.4,0.4876]
[1764080547230,0.1915,2914.9,2914.4,0.4876]
[1764080547429,0.53855452,2914.8,2914.5,0.4944]
[1764080547659,0.218,2914.8,2914.5,0.4944]
[1764080547846,0.218,2914.8,2914.5,3.92549522]
[1764080548054,0.32063646,2914.7,2914.4,3.43118477]
[1764080548369,0.32063646,2914.7,2914.0,4.15827558]
[1764080548670,0.2874,2914.3,2914.0,4.15827558]
[1764080548864,0.218,2914.2,2914.0,4.15827558]
[1764080549465,0.218,2914.2,2914.0,0.001]
[1764080549635,0.218,2914.2,2914.0,3.43266457]
[1764080549831,0.4495,2914.6,2914.1,0.4876]
[1764080550040,0.53855015,2914.5,2914.0,0.001]
[1764080550240,0.218,2914.5,2914.0,0.001]
[1764080550435,0.218,2914.4,2914.0,0.4954]
[1764080551937,0.218,2914.4,2914.1,6.86318244]
[1764080552346,0.218,2914.4,2914.1,7.35758244]
[1764080552648,0.4512,2914.8,2914.3,0.4876]
[1764080552847,0.9253907,2915.2,2914.4,0.4944]
[1764080552848,0.53835099,2914.7,2914.4,0.4944]
[1764080553166,0.218,2914.6,2914.4,0.4944]
[1764080553543,3.43229665,2915.2,2914.5,0.4876]
[1764080553847,1.05865104,2915.1,2914.6,6.86200506]
[1764080554063,0.53844257,2915.0,2914.7,0.4944]
[1764080554238,0.218,2915.0,2914.7,0.4944]
[1764080554438,0.218,2915.0,2914.9,0.4876]
[1764080554634,0.8197,2915.0,2914.4,0.4944]
[1764080554838,0.1906,2914.9,2914.4,0.4944]
[1764080555383,0.51115594,2914.9,2914.4,0.4944]
[1764080555736,0.96235594,2914.9,2914.2,3.43147347]
[1764080555940,4.11542561,2914.9,2914.2,3.43147347]
[1764080556152,0.7718781,2914.8,2914.2,3.43147347]
[1764080556341,0.3206781,2914.7,2914.1,3.43158517]
[1764080556659,0.5386781,2914.6,2914.1,3.43158517]
[1764080556840,0.218,2914.6,2914.1,3.43158517]
[1764080557240,0.218,2914.6,2914.1,6.86317639]
[1764080557464,0.218,2914.6,2914.1,7.35757639]
[1764080559278,0.4985,2914.2,2914.0,3.43265156]
[1764080559452,0.218,2914.1,2914.0,3.43265156]
[1764080559653,0.218,2914.1,2914.0,0.001]
[1764080559983,0.7126,2914.1,2914.0,0.001]
[1764080560278,0.218,2914.1,2914.0,0.4886]
[1764080561087,0.405504,2914.5,2914.0,0.4886]
[1764080561381,0.53882734,2914.4,2914.0,0.4886]
[1764080561581,0.32082734,2914.3,2914.0,0.4886]
[1764080562359,0.32082734,2914.3,2914.0,0.001]
[1764080562564,0.4985,2914.1,2914.0,0.001]
[1764080562963,1.008104,2914.1,2914.0,0.001]
[1764080563182,1.32876497,2914.1,2914.0,0.001]
[1764080564048,0.32066097,2914.1,2914.0,3.92030899]
[1764080564251,0.218,2914.1,2914.0,3.92030899]
[1764080564652,1.17679411,2914.7,2914.0,3.92030899]
[1764080564852,1.46483404,2914.6,2914.0,3.92030899]
[1764080565054,0.32062261,2914.5,2914.1,0.6845]
[1764080565282,0.53862261,2914.4,2914.1,0.6845]
[1764080565482,0.73889111,2914.8,2914.4,0.4876]
[1764080565670,0.218,2914.7,2914.5,0.4944]
[1764080566058,0.218,2914.7,2914.6,0.4876]
[1764080566385,0.218,2914.7,2914.6,3.91860253]
[1764080568287,0.002,2914.9,2914.6,7.84400506]
[1764080568493,0.002,2914.9,2914.8,0.4876]
[1764080568713,0.54084148,2914.9,2914.8,0.4876]
[1764080569801,0.002,2914.9,2914.8,0.982]
[1764080570002,0.22,2914.9,2914.8,0.982]
[1764080570468,0.002,2914.9,2914.8,4.41276711]
[1764080570860,0.002,2914.9,2914.8,8.7026636]
[1764080571092,0.002,2914.9,2914.8,9.42825771]
[1764080571400,0.002,2914.9,2914.8,5.13836122]
[1764080574801,0.002,2914.9,2914.8,5.15890095]
[1764080575013,0.002,2914.9,2914.8,5.13836122]
[1764080575704,0.002,2914.9,2914.8,5.15890095]
[1764080576401,0.002,2914.9,2914.8,8.94890095]
[1764080576607,0.002,2914.9,2914.8,8.92836122]
[1764080577520,0.002,2914.9,2914.8,9.02272122]
[1764080578824,0.002,2914.9,2914.8,8.92836122]
[1764080580009,0.002,2914.9,2914.8,9.02272122]
[1764080580727,1e-08,2915.2,2915.1,0.58496]
[1764080581015,0.002,2916.1,2915.1,0.58496]
[1764080581016,0.002,2917.2,2915.7,0.4906]
[1764080581317,0.002,2917.2,2916.2,1.41399411]
[1764080581525,0.002,2917.2,2916.2,2.13059411]
[1764080581814,0.002,2917.2,2916.2,5.65407419]
[1764080582184,0.1944,2916.9,2916.2,5.55971419]
[1764080582510,0.002,2916.9,2916.2,5.55971419]
[1764080582913,0.1944,2916.9,2916.2,5.55971419]
[1764080583409,0.4614,2916.8,2916.2,4.64531419]
[1764080583814,0.4614,2916.8,2916.2,5.14391419]
[1764080584184,0.1944,2916.9,2916.2,5.14391419]
[1764080584388,0.002,2916.9,2916.2,5.14391419]
[1764080585613,0.1944,2916.9,2916.2,5.14391419]
[1764080586385,0.002,2916.9,2916.2,5.16441274]
[1764080587426,0.002,2916.9,2916.2,5.14391419]
[1764080587654,0.002,2916.9,2916.2,5.16441274]
[1764080587955,0.002,2916.9,2916.2,5.25877274]
[1764080589044,0.1944,2916.9,2916.2,4.66581274]
[1764080589248,0.6558,2916.9,2916.2,4.64531419]
[1764080589443,0.6558,2916.9,2916.2,5.14391419]
[1764080589444,0.1944,2916.9,2916.2,5.14391419]
[1764080589654,0.002,2916.9,2916.2,5.16441274]
[1764080589813,0.002,2916.9,2916.2,5.25877274]
[1764080590013,0.002,2916.9,2916.2,5.14391419]
[1764080590826,0.002,2916.9,2916.2,5.16441274]
[1764080591156,0.1944,2916.9,2916.2,5.14391419]
[1764080591453,0.002,2916.9,2916.2,5.36191419]
[1764080591649,0.002,2916.9,2916.2,5.45627419]
[1764080592031,0.1944,2916.9,2916.2,5.36191419]
[1764080592217,0.0012,2916.3,2916.2,5.36191419]
[1764080593733,0.0012,2916.3,2916.2,4.64531419]
[1764080593933,0.0012,2916.3,2916.2,4.66581274]
[1764080594254,0.0012,2916.3,2916.2,4.64531419]
[1764080594560,0.0012,2916.3,2916.2,5.16441274]
[1764080594871,0.0012,2916.3,2916.1,3.42923768]
[1764080594872,0.5723,2916.3,2916.1,3.42923768]
[1764080595175,0.1166,2916.2,2916.1,3.42923768]
[1764080595354,0.1166,2916.2,2916.0,0.001]
[1764080595734,0.4685,2916.1,2916.0,0.001]
[1764080596233,0.5747,2916.1,2916.0,0.001]
[1764080600662,4.00393768,2916.1,2916.0,0.001]
[1764080600867,4.40944168,2916.1,2916.0,0.001]
[1764080601878,1.198204,2916.1,2916.0,0.001]
[1764080602060,4.62744168,2916.1,2916.0,0.001]
[1764080602793,0.980204,2916.1,2916.0,0.001]
[1764080602956,1.198204,2916.1,2916.0,0.001]
[1764080603305,0.6865,2916.1,2916.0,0.001]
[1764080603666,0.4685,2916.1,2916.0,0.001]
[1764080603869,0.5747,2916.1,2916.0,0.001]
[1764080604051,0.7927,2916.1,2916.0,0.001]
[1764080604251,0.5747,2916.1,2916.0,0.001]
[1764080604452,0.6865,2916.1,2916.0,0.001]
[1764080604657,0.4685,2916.1,2916.0,0.001]
[1764080605196,0.5747,2916.1,2916.0,0.001]
[1764080605994,4.00393768,2916.1,2916.0,0.001]
[1764080606770,0.5747,2916.1,2916.0,0.001]
[1764080606958,0.7927,2916.1,2916.0,0.001]
[1764080607159,4.22193768,2916.1,2916.0,0.001]
[1764080608102,0.7927,2916.1,2916.0,0.001]
[1764080608268,0.5747,2916.1,2916.0,0.001]
[1764080608468,0.7927,2916.1,2916.0,0.001]
[1764080608671,4.22193768,2916.1,2916.0,0.001]
[1764080608868,0.5747,2916.1,2916.0,0.001]
[1764080609073,0.7927,2916.1,2916.0,0.001]
[1764080609366,0.6865,2916.1,2916.0,0.001]
[1764080609566,0.4685,2916.1,2916.0,0.001]
[1764080609759,0.0012,2916.3,2916.0,0.001]
[1764080609955,0.2192,2916.3,2916.0,0.4764]
[1764080610189,0.2192,2916.3,2916.0,0.9406]
[1764080610496,0.0012,2916.3,2916.2,0.4754]
[1764080610696,0.0012,2916.3,2916.2,0.9396]
[1764080611387,0.0012,2916.3,2916.2,0.4754]
[1764080611610,0.5758,2916.3,2916.0,0.001]
[1764080611759,0.4683,2916.3,2916.0,0.001]
[1764080612373,0.1075,2916.1,2916.0,0.001]
[1764080612999,0.789,2916.1,2916.0,0.001]
[1764080614284,4.21823768,2916.1,2916.0,0.001]
[1764080614484,0.789,2916.1,2916.0,0.001]
[1764080616193,0.7882,2916.1,2916.0,0.001]
[1764080619111,0.1067,2916.1,2916.0,0.001]
[1764080619313,1.194504,2916.1,2916.0,0.001]
[1764080619489,4.62374168,2916.1,2916.0,0.001]
[1764080620415,1.194504,2916.1,2916.0,0.001]
[1764080620781,4.62374168,2916.1,2916.0,0.001]
[1764080621915,4.94395333,2916.1,2916.0,0.001]
[1764080622312,1.51471565,2916.1,2916.0,0.001]
[1764080622813,1.51471565,2916.1,2915.3,7.32455742]
[1764080623014,4.5170491,2916.1,2915.3,7.32455742]
[1764080623182,0.32045644,2916.0,2915.3,7.32455742]
[1764080624183,0.1878,2915.9,2915.3,7.32455742]
[1764080624706,0.99425644,2915.9,2915.3,6.86035742]
[1764080624882,0.6738,2915.9,2915.3,6.86035742]
[1764080625206,0.1878,2915.9,2915.3,6.86035742]
[1764080625424,0.32076117,2916.0,2915.8,0.4754]
[1764080625586,0.218,2915.9,2915.8,0.4754]
[1764080626713,0.3106,2915.9,2915.5,6.8598868]
[1764080628422,0.32089058,2915.8,2915.5,3.4299434]
[1764080628632,4.17035898,2916.1,2915.8,0.4754]
[1764080628633,0.002,2916.1,2915.8,0.4754]
[1764080628802,0.32290437,2916.1,2916.0,0.4754]
[1764080629122,0.002,2916.1,2916.0,0.4754]
[1764080629419,0.002,2916.1,2916.0,0.9396]
[1764080630810,0.002,2916.1,2916.0,4.36895528]
[1764080631010,0.002,2916.1,2916.0,4.38945971]
[1764080631405,0.002,2916.1,2916.0,4.36895528]
[1764080632820,0.002,2916.1,2916.0,4.38945971]
[1764080633025,0.002,2916.1,2916.0,5.11505382]
[1764080633319,0.002,2916.1,2916.0,5.20941382]
[1764080633519,0.002,2916.1,2916.0,5.09454939]
[1764080633898,0.002,2916.1,2916.0,5.11505382]
[1764080634221,0.002,2916.1,2916.0,5.09454939]
[1764080634718,0.002,2916.1,2916.0,5.11194939]
[1764080636391,0.002,2916.1,2916.0,5.13245382]
[1764080636626,0.002,2916.1,2916.0,5.11194939]
[1764080637333,0.002,2916.1,2916.0,13.31786119]
[1764080637638,0.002,2916.1,2916.0,13.29735676]
[1764080639027,0.002,2916.1,2916.0,8.90194939]
[1764080640296,0.0012,2916.1,2916.0,8.90194939]
[1764080642101,1e-08,2916.7,2916.6,0.6993]
[1764080642333,0.002,2916.9,2916.8,0.09436]
[1764080642646,0.002,2916.9,2916.8,0.4995]
[1764080642940,0.002,2916.9,2916.8,4.44359562]
[1764080643152,0.002,2916.9,2916.8,5.26354973]
[1764080643368,0.002,2917.5,2917.0,0.09436]
[1764080643511,0.002,2917.5,2917.1,5.62050148]
[1764080643714,0.002,2917.5,2917.1,6.11570148]
[1764080644832,0.002,2917.5,2917.1,9.44940359]
[1764080645046,0.002,2917.5,2917.1,5.14835622]
[1764080645355,0.002,2917.5,2917.1,5.16882832]
[1764080645716,0.002,2917.5,2917.1,5.14835622]
[1764080648118,0.002,2917.5,2917.1,5.16882832]
[1764080648329,0.002,2917.5,2917.1,5.24271622]
[1764080648924,0.002,2917.5,2917.1,5.14835622]
[1764080649266,0.002,2917.8,2917.1,5.14835622]
[1764080649267,1e-08,2917.8,2917.7,0.59386]
[1764080649431,1e-08,2917.8,2917.7,5.83850148]
[1764080649747,1e-08,2917.8,2917.7,6.33370148]
[1764080649947,1e-08,2917.8,2917.7,6.23934148]
[1764080650852,1e-08,2917.8,2917.7,1.22509411]
[1764080651020,1e-08,2917.8,2917.7,1.72029411]
[1764080651224,1e-08,2917.8,2917.7,9.44869864]
[1764080652852,1e-08,2917.8,2917.7,9.85420264]
[1764080653419,1e-08,2917.8,2917.7,9.94856264]
[1764080653857,1e-08,2917.8,2917.7,9.44869864]
[1764080654856,1e-08,2917.8,2917.7,4.15295127]
[1764080655250,1e-08,2917.8,2917.7,4.65245127]
[1764080655455,1e-08,2917.8,2917.7,4.15295127]
[1764080655456,0.49430001,2917.8,2917.7,4.15295127]
[1764080655847,0.49430001,2917.8,2917.7,3.42735716]
[1764080656971,1e-08,2917.8,2917.7,3.42735716]
[1764080657173,1e-08,2917.8,2917.5,7.58077833]
[1764080657341,0.4675,2918.8,2917.7,5.62050148]
[1764080657546,0.6553,2919.0,2918.1,5.00034737]
[1764080657775,0.1878,2919.0,2918.2,0.7460272]
[1764080657975,0.1878,2919.0,2918.2,1.2412272]
[1764080658187,0.1878,2919.0,2918.3,0.4952]
[1764080658389,0.1878,2919.0,2918.4,0.02042946]
[1764080658918,0.1878,2919.0,2918.4,0.51562946]
[1764080659057,0.4675,2919.3,2918.4,0.51562946]
[1764080659242,0.4675,2919.3,2918.7,10.27854864]
[1764080659678,3.46449551,2920.1,2918.8,0.4952]
[1764080659679,0.4675,2919.7,2918.8,0.4952]
[1764080659886,0.218,2919.9,2918.7,10.27854864]
[1764080660191,0.4646,2919.8,2918.7,13.70473152]
[1764080660476,0.4646,2919.8,2918.8,0.4984]
[1764080661173,0.4646,2919.8,2918.8,1.22399411]
[1764080661379,0.4646,2919.8,2919.0,0.72559411]
[1764080661581,0.4646,2919.8,2919.1,0.1958]
[1764080661751,0.4646,2919.8,2919.0,0.72559411]
[1764080661957,0.4646,2919.8,2919.0,0.64359411]
[1764080663307,0.4646,2919.8,2919.1,10.2771402]
[1764080663499,0.002,2919.3,2919.1,6.8514268]
[1764080663882,0.002,2919.3,2919.2,0.72559411]
[1764080664286,0.0012,2919.3,2919.2,0.72559411]
[1764080665382,0.0012,2919.3,2919.2,4.15119016]
[1764080666110,0.0012,2919.3,2919.2,4.63149016]
[1764080666315,0.0012,2919.3,2919.2,5.12989016]
[1764080667412,0.0012,2919.3,2919.2,5.15030061]
[1764080667620,0.0012,2919.3,2919.2,4.63149016]
[1764080667984,0.2914,2919.3,2919.2,4.15119016]
[1764080668679,0.2931,2919.3,2919.2,4.15119016]
[1764080669716,0.2931,2919.3,2919.2,3.42559605]
[1764080670583,0.7542,2919.3,2919.2,3.42559605]
[1764080671918,0.7542,2919.3,2918.9,4.15154224]
[1764080671919,0.7542,2919.3,2919.0,6.85166152]
[1764080672117,0.4646,2919.2,2919.0,6.85166152]
[1764080672293,0.2902,2919.1,2919.0,3.42583076]
[1764080672678,0.753,2919.1,2919.0,3.42583076]
[1764080673082,0.2902,2919.1,2919.0,3.42583076]
[1764080673792,0.753,2919.1,2919.0,3.42583076]
[1764080674184,0.753,2919.1,2918.6,0.72559411]
[1764080674383,0.4628,2919.1,2918.6,0.72559411]
[1764080674603,0.2902,2918.7,2918.6,0.72559411]
[1764080674983,0.2902,2918.7,2918.5,6.85283536]
[1764080675385,0.7537,2918.6,2918.5,3.42641768]
[1764080675800,0.0012,2919.3,2918.5,10.75955304]
[1764080675999,0.31969658,2919.2,2918.7,0.4803]
[1764080676230,0.6838,2919.3,2918.5,10.77765304]
[1764080676427,0.4646,2919.2,2918.5,10.77765304]
[1764080676594,0.2874,2918.6,2918.5,3.42641768]
[1764080676925,0.4646,2919.2,2918.5,10.27925304]
[1764080677101,0.2192,2919.3,2918.5,10.27925304]
[1764080677102,0.1847,2918.8,2918.5,10.27925304]
[1764080677300,0.2874,2918.6,2918.5,3.42641768]
[1764080678357,0.1847,2918.8,2918.3,0.72559411]